fUSD/lending_fUSD_20260129
["ID","MTS","AMOUNT","RATE_DAILY","PERIOD"]
[403971700,1769700643894,-1760.55,0.00016149,2]
[403971702,1769700643903,-433.0,0.00016151,2]
[403971704,1769700643913,-8345.80920432,0.000162,5]
[403971706,1769700643923,-150.0,0.000162,2]
[403971708,1769700643932,-165.49289447,0.000163,2]
[403971710,1769700643943,-6035.05662255,0.00016313,2]
[403971773,1769700644554,-364.40189523,0.00016313,2]
[403971775,1769700644566,-277.9307743,0.00016313,2]
[403971779,1769700644590,-655.28295906,0.00016313,2]
[403971785,1769700644642,-8423.11774886,0.00016313,2]
[403971786,1769700644651,-500.0,0.00016329,2]
[403971788,1769700644661,-200.0,0.0001634,2]
[403971790,1769700644671,-238.89,0.00016365,2]
[403971791,1769700644682,-1000.0,0.00016365,2]
[403971793,1769700644691,-162.06,0.00016404,2]
[403971794,1769700644707,-1760.55,0.00016423,2]
[403971796,1769700644717,-500.0,0.00016437,2]
[403971797,1769700644727,-500.0,0.00016437,2]
[403971799,1769700644737,-800.0,0.00016438,2]
[403971801,1769700644747,-796.64,0.00016438,2]
[403971803,1769700644756,-1724.69254961,0.00016444,2]
[403971805,1769700644765,-1935.77863637,0.000165,2]
[403971806,1769700644777,-151.0,0.00016507,2]
[403971808,1769700644787,-21270.42167549,0.00016513,2]
[403971810,1769700644807,-186.68965836,0.00016513,2]
[403971811,1769700644816,-345.62794245,0.00016515,2]
[403971812,1769700644827,-735.72611456,0.00016515,2]
[403971813,1769700644836,-1000.0,0.00016521,2]
[403971814,1769700644846,-495.2614448,0.00016521,2]
[403971816,1769700644856,-1000.0,0.00016521,2]
[403971817,1769700644866,-453.96398478,0.00016521,2]
[403971818,1769700644875,-1000.0,0.00016521,2]
[403971819,1769700644885,-729.59307043,0.00016521,2]
[403971820,1769700644895,-1000.0,0.00016521,2]
[403971821,1769700644904,-548.87500636,0.00016521,2]
[403971822,1769700644913,-1000.0,0.00016521,2]
[403971823,1769700644923,-152.81544497,0.00016521,2]
[403971824,1769700644931,-160.46,0.00016535,2]
[403971825,1769700644941,-360.58098956,0.000166,2]
[403971826,1769700644953,-1760.55,0.00016697,2]
[403971827,1769700644962,-165.34,0.00016712,2]
[403971828,1769700644970,-2351.0,0.00016717,2]
[403971829,1769700644979,-1398.41,0.00016767,2]
[403971830,1769700644988,-2783.13145925,0.000168,2]
[403971831,1769700645000,-7216.86854075,0.000168,2]
[403971832,1769700645009,-4686.0,0.00016804,2]
[403971833,1769700645019,-165.59,0.00016817,2]
[403971834,1769700645028,-168.28,0.0001682,2]
[403971835,1769700645037,-160.44,0.00016857,2]
[403971836,1769700645046,-248.42,0.00016862,2]
[403971837,1769700645055,-3200.0,0.000169,6]
[403971838,1769700645065,-2303.6851797,0.000169,2]
[403971839,1769700645075,-24253.17423452,0.000169,2]
[403971840,1769700645085,-1047.11909536,0.00016904,2]
[403971841,1769700645095,-4686.0,0.00016905,2]
[403971842,1769700645104,-380.0,0.00016928,2]
[403971843,1769700645114,-500.0,0.00016951,2]
[403971844,1769700645125,-380.0,0.00016957,2]
[403971845,1769700645135,-1760.55,0.00016971,2]
[403971846,1769700645144,-21457.11133385,0.00016973,2]
[403971847,1769700645154,-385.0,0.00016979,2]
[403971848,1769700645163,-380.0,0.00016982,2]
[403971849,1769700645173,-250.0,0.00016986,5]
[403971850,1769700645183,-250.0,0.00016986,5]
[403971851,1769700645192,-250.0,0.00016986,5]
[403971852,1769700645203,-250.0,0.00016986,5]
[403971853,1769700645212,-250.0,0.00016986,5]
[403971854,1769700645222,-250.0,0.00016986,5]
[403971856,1769700645232,-250.0,0.00016986,5]
[403971857,1769700645241,-250.0,0.00016986,5]
[403971859,1769700645251,-250.0,0.00016986,5]
[403971863,1769700645261,-250.0,0.00016986,5]
[403971866,1769700645270,-250.0,0.00016986,5]
[403971869,1769700645279,-250.0,0.00016986,5]
[403971873,1769700645289,-250.0,0.00016986,5]
[403971876,1769700645298,-187.517907,0.00016986,5]
[403971878,1769700645308,-473.52050679,0.0001699,2]
[403971879,1769700645317,-673853.75943846,0.00017,2]
[403971880,1769700645326,-160.0,0.00017,2]
[403971881,1769700645336,-1597.57754792,0.00017,2]
[403971882,1769700645345,-379.0,0.00017016,2]
[403971883,1769700645354,-385.0,0.00017044,2]
[403971886,1769700645363,-380.0,0.00017054,2]
[403971888,1769700645374,-380.0,0.00017064,2]
[403971889,1769700645384,-1500.0,0.00017068,2]
[403971890,1769700645394,-1500.0,0.00017068,2]
[403971891,1769700645403,-1500.0,0.00017068,2]
[403971892,1769700645413,-1500.0,0.00017068,2]
[403971893,1769700645423,-502.95752889,0.00017068,2]
[403971894,1769700645433,-238.89,0.00017072,2]
[403971895,1769700645442,-322.6107,0.00017099,2]
[403971896,1769700645456,-151.0,0.00017099,2]
[403971897,1769700645466,-854.2589148,0.00017099,2]
[403971898,1769700645475,-500.0,0.00017099,2]
[403971899,1769700645485,-500.0,0.00017099,2]
[403971901,1769700645495,-500.0,0.00017099,2]
[403971903,1769700645504,-500.0,0.00017099,2]
[403971905,1769700645515,-500.0,0.00017099,2]
[403971907,1769700645524,-500.0,0.00017099,2]
[403971909,1769700645534,-500.0,0.00017099,2]
[403971911,1769700645543,-500.0,0.00017099,2]
[403971913,1769700645552,-500.0,0.00017099,2]
[403971915,1769700645562,-500.0,0.00017099,2]
[403971918,1769700645572,-500.0,0.00017099,2]
[403971921,1769700645581,-500.0,0.00017099,2]
[403971924,1769700645591,-500.0,0.00017099,2]
[403971927,1769700645600,-500.0,0.00017099,2]
[403971930,1769700645610,-500.0,0.00017099,2]
[403971933,1769700645620,-721.12765535,0.00017099,2]
[403971936,1769700645629,-500.0,0.00017099,2]
[403971939,1769700645638,-500.0,0.00017099,2]
[403971941,1769700645648,-500.0,0.00017099,2]
[403971943,1769700645657,-500.0,0.00017099,2]
[403971944,1769700645666,-500.0,0.00017099,2]
[403971945,1769700645675,-500.0,0.00017099,2]
[403971946,1769700645688,-500.0,0.00017099,2]
[403971947,1769700645701,-209.40437684,0.00017099,2]
[403971948,1769700645710,-500.0,0.00017099,2]
[403971949,1769700645720,-500.0,0.00017099,2]
[403971950,1769700645731,-500.0,0.00017099,2]
[403971951,1769700645740,-500.0,0.00017099,2]
[403971952,1769700645749,-500.0,0.00017099,2]
[403971953,1769700645759,-500.0,0.00017099,2]
[403971954,1769700645768,-500.0,0.00017099,2]
[403971955,1769700645780,-500.0,0.00017099,2]
[403971956,1769700645789,-500.0,0.00017099,2]
[403971957,1769700645799,-500.0,0.00017099,2]
[403971958,1769700645808,-250.0,0.00017099,2]
[403971959,1769700645818,-500.0,0.00017099,2]
[403971960,1769700645827,-250.0,0.00017099,2]
[403971961,1769700645837,-174.61919141,0.00017099,2]
[403971962,1769700645847,-250.0,0.00017099,2]
[403971963,1769700645856,-1000.0,0.00017099,2]
[403971964,1769700645865,-250.0,0.00017099,2]
[403971965,1769700645875,-1000.0,0.00017099,2]
[403971966,1769700645885,-250.0,0.00017099,2]
[403971967,1769700645894,-1000.0,0.00017099,2]
[403971968,1769700645904,-250.0,0.00017099,2]
[403971969,1769700645914,-1000.0,0.00017099,2]
[403971970,1769700645923,-250.0,0.00017099,2]
[403971971,1769700645933,-1000.0,0.00017099,2]
[403971972,1769700645943,-250.0,0.00017099,2]
[403971974,1769700646345,-209.40437684,0.00017099,2]
[403971975,1769700646384,-1000.0,0.00017099,2]
[403971976,1769700646403,-250.0,0.00017099,2]
[403971977,1769700646413,-578.20924308,0.00017099,2]
[403971978,1769700646423,-1000.0,0.00017099,2]
[403971979,1769700646432,-250.0,0.00017099,2]
[403971980,1769700646441,-209.40437684,0.00017099,2]
[403971981,1769700646453,-1000.0,0.00017099,2]
[403971982,1769700646462,-250.0,0.00017099,2]
[403971983,1769700646471,-1000.0,0.00017099,2]
[403971984,1769700646481,-1000.0,0.00017099,2]
[403971985,1769700646491,-1000.0,0.00017099,2]
[403971988,1769700646500,-250.0,0.00017099,2]
[403971990,1769700646510,-250.0,0.00017099,2]
[403971992,1769700646519,-151.0,0.00017099,2]
[403971993,1769700646528,-250.0,0.00017099,2]
[403971996,1769700646538,-250.0,0.00017099,2]
[403971997,1769700646547,-250.0,0.00017099,2]
[403972000,1769700646558,-250.0,0.00017099,2]
[403972001,1769700646568,-250.0,0.00017099,2]
[403972003,1769700646577,-250.0,0.00017099,2]
[403972005,1769700646587,-250.0,0.00017099,2]
[403972007,1769700646596,-250.0,0.00017099,2]
[403972009,1769700646605,-250.0,0.00017099,2]
[403972010,1769700646614,-500.0,0.00017099,2]
[403972011,1769700646624,-209.40437684,0.00017099,2]
[403972012,1769700646637,-500.0,0.00017099,2]
[403972013,1769700646647,-500.0,0.00017099,2]
[403972014,1769700646656,-500.0,0.00017099,2]
[403972015,1769700646666,-500.0,0.00017099,2]
[403972016,1769700646676,-500.0,0.00017099,2]
[403972018,1769700646685,-500.0,0.00017099,2]
[403972019,1769700646695,-500.0,0.00017099,2]
[403972022,1769700646709,-500.0,0.00017099,2]
[403972023,1769700646720,-500.0,0.00017099,2]
[403972024,1769700646731,-500.0,0.00017099,2]
[403972025,1769700646740,-250.0,0.00017099,2]
[403972026,1769700646751,-250.0,0.00017099,2]
[403972027,1769700646761,-250.0,0.00017099,2]
[403972028,1769700646771,-250.0,0.00017099,2]
[403972029,1769700646783,-250.0,0.00017099,2]
[403972030,1769700646793,-250.0,0.00017099,2]
[403972031,1769700646802,-250.0,0.00017099,2]
[403972032,1769700646812,-250.0,0.00017099,2]
[403972033,1769700646821,-250.0,0.00017099,2]
[403972034,1769700646832,-250.0,0.00017099,2]
[403972035,1769700646846,-250.0,0.00017099,2]
[403972036,1769700646856,-250.0,0.00017099,2]
[403972037,1769700646866,-250.0,0.00017099,2]
[403972038,1769700646875,-250.0,0.00017099,2]
[403972039,1769700646885,-250.0,0.00017099,2]
[403972040,1769700646895,-250.0,0.00017099,2]
[403972041,1769700646904,-250.0,0.00017099,2]
[403972042,1769700646914,-250.0,0.00017099,2]
[403972043,1769700646924,-250.0,0.00017099,2]
[403972044,1769700646933,-250.0,0.00017099,2]
[403972045,1769700646943,-250.0,0.00017099,2]
[403972046,1769700646955,-250.0,0.00017099,2]
[403972047,1769700646965,-380.0,0.00017101,2]
[403972048,1769700646974,-380.0,0.00017128,2]
[403972049,1769700646984,-380.0,0.00017139,2]
[403972050,1769700646994,-385.0,0.00017144,2]
[403972051,1769700647003,-162.06,0.0001715,2]
[403972052,1769700647013,-217.15233878,0.00017154,2]
[403972053,1769700647023,-380.0,0.00017205,2]
[403972054,1769700647033,-1081.35405701,0.00017207,2]
[403972055,1769700647044,-225.18697532,0.00017209,2]
[403972057,1769700647056,-500.0,0.00017222,2]
[403972059,1769700647066,-1760.55,0.00017245,2]
[403972061,1769700647076,-160.46,0.00017245,2]
[403972063,1769700647087,-233.51889341,0.00017264,2]
[403972065,1769700647096,-4686.0,0.00017294,2]
[403972067,1769700647107,-500.0,0.00017318,2]
[403972069,1769700647117,-3548.0,0.00017318,2]
[403972071,1769700647127,-242.15909246,0.00017319,2]
[403972074,1769700647138,-380.0,0.00017326,2]
[403972076,1769700647147,-380.0,0.00017333,2]
[403972077,1769700647158,-380.0,0.00017365,2]
[403972078,1769700647167,-251.11897888,0.00017374,2]
[403972079,1769700647177,-447.47848712,0.00017378,2]
[403972080,1769700647186,-256.51302305,0.000174,2]
[403972081,1769700647196,-2303.68517968,0.000174,2]
[403972082,1769700647208,-152.3,0.000174,2]
[403972083,1769700647217,-152.3,0.000174,2]
[403972084,1769700647227,-152.3,0.000174,2]
[403972085,1769700647238,-152.3,0.000174,2]
[403972086,1769700647248,-152.3,0.000174,2]
[403972087,1769700647258,-152.3,0.000174,2]
[403972088,1769700647268,-152.3,0.000174,2]
[403972089,1769700647277,-152.3,0.000174,2]
[403972090,1769700647286,-152.3,0.000174,2]
[403972091,1769700647297,-152.3,0.000174,2]
[403972092,1769700647307,-152.3,0.000174,2]
[403972093,1769700647316,-152.3,0.000174,2]
[403972094,1769700647326,-152.3,0.000174,2]
[403972095,1769700647336,-152.3,0.000174,2]
[403972096,1769700647345,-152.3,0.000174,2]
[403972097,1769700647355,-152.3,0.000174,2]
[403972098,1769700647365,-24253.17423452,0.000174,2]
[403972099,1769700647374,-3548.0,0.00017404,2]
[403972100,1769700647384,-245.31899142,0.00017422,2]
[403972101,1769700647393,-385.0,0.00017422,2]
[403972102,1769700647402,-260.4103811,0.00017429,2]
[403972103,1769700647412,-1660.17763539,0.00017432,2]
[403972104,1769700647421,-21457.11133385,0.00017432,2]
[403972105,1769700647438,-736.0,0.0001745,2]
[403972106,1769700647452,-203.42404974,0.0001746,2]
[403972107,1769700647463,-500.0,0.00017483,2]
[403972108,1769700647473,-270.0455652,0.00017484,2]
[403972109,1769700647483,-151.0,0.00017497,2]
[403972110,1769700647493,-259405.78343803,0.000175,3]
[403972111,1769700647503,-1605.67006899,0.000175,2]
[403972112,1769700647514,-600.0,0.000175,6]
[403972113,1769700647524,-380.0,0.00017507,2]
[403972114,1769700647534,-380.0,0.00017519,2]
[403972115,1769700647544,-1760.55,0.00017519,2]
[403972116,1769700647554,-1600.0,0.00017534,2]
[403972117,1769700647564,-280.03725112,0.00017539,2]
[403972118,1769700647574,-380.0,0.00017558,2]
[403972119,1769700647584,-290.39862941,0.00017594,2]
[403972120,1769700647595,-600.0,0.000176,6]
[403972121,1769700647606,-380.0,0.00017609,2]
[403972122,1769700647616,-380.0,0.00017615,2]
[403972123,1769700647627,-500.0,0.00017616,2]
[403972124,1769700647637,-2000.0,0.00017616,2]
[403972125,1769700647647,-226.99112244,0.00017616,2]
[403972126,1769700647656,-2000.0,0.00017616,2]
[403972127,1769700647666,-1516.45192786,0.00017616,2]
[403972128,1769700647676,-2986.73035102,0.0001764,2]
[403972129,1769700647688,-151.0,0.00017647,2]
[403972130,1769700647702,-885.86649465,0.00017647,2]
[403972131,1769700647712,-367.66577198,0.00017647,2]
[403972132,1769700647722,-181.08010149,0.00017647,2]
[403972133,1769700647735,-188.60518727,0.00017647,2]
[403972134,1769700647745,-151.0,0.00017647,2]
[403972135,1769700647756,-217.15233878,0.00017647,2]
[403972136,1769700647766,-301.1433787,0.00017649,2]
[403972137,1769700647776,-380.0,0.0001765,2]
[403972138,1769700647787,-3548.0,0.00017659,2]
[403972139,1769700647798,-25000.0,0.00017671,3]
[403972140,1769700647809,-380.0,0.00017676,2]
[403972141,1769700647819,-25000.0,0.0001768,3]
[403972142,1769700647829,-25000.0,0.00017689,3]
[403972143,1769700647839,-500.0,0.00017697,2]
[403972144,1769700647850,-25000.0,0.00017698,3]
[403972145,1769700647859,-782.1570349,0.000177,2]
[403972146,1769700647871,-600.0,0.000177,6]
[403972147,1769700647881,-403.0,0.000177,5]
[403972148,1769700647891,-25000.0,0.00017706,3]
[403972149,1769700647901,-500.0,0.00017714,2]
[403972150,1769700647911,-25000.0,0.00017715,3]
[403972151,1769700647921,-380.0,0.00017718,2]
[403972152,1769700647931,-25000.0,0.00017724,3]
[403972153,1769700647941,-25000.0,0.00017733,3]
[403972154,1769700647953,-25000.0,0.00017742,3]
[403972155,1769700647963,-500.0,0.0001775,2]
[403972156,1769700647972,-25000.0,0.0001775,3]
[403972157,1769700647982,-25000.0,0.00017759,3]
[403972158,1769700647992,-25000.0,0.00017768,3]
[403972159,1769700648002,-25000.0,0.00017777,3]
[403972160,1769700648011,-21994.48450495,0.00017779,2]
[403972161,1769700648022,-32902.43341568,0.00017779,2]
[403972162,1769700648031,-44518.1616,0.00017779,2]
[403972163,1769700648041,-25000.0,0.00017786,3]
[403972164,1769700648051,-1760.55,0.00017793,2]
[403972165,1769700648060,-25000.0,0.00017794,3]
[403972166,1769700648070,-600.0,0.000178,6]
[403972167,1769700648080,-500.0,0.00017803,2]
[403972168,1769700648090,-25000.0,0.00017803,3]
[403972169,1769700648102,-159.26,0.00017804,2]
[403972170,1769700648113,-380.0,0.00017805,2]
[403972171,1769700648123,-25000.0,0.00017812,3]
[403972172,1769700648132,-2000.0,0.0001782,2]
[403972173,1769700648142,-2000.0,0.0001782,2]
[403972174,1769700648151,-25000.0,0.00017821,3]
[403972175,1769700648161,-25000.0,0.0001783,3]
[403972176,1769700648171,-159.26,0.0001783,2]
[403972177,1769700648182,-380.0,0.00017838,2]
[403972178,1769700648191,-151.0,0.00017838,2]
[403972179,1769700648202,-151.0,0.00017838,2]
[403972180,1769700648212,-25000.0,0.00017838,3]
[403972181,1769700648221,-25000.0,0.00017847,3]
[403972182,1769700648231,-200.0,0.00017855,2]
[403972183,1769700648240,-200.0,0.00017856,2]
[403972184,1769700648250,-200.0,0.00017856,2]
[403972185,1769700648259,-25000.0,0.00017856,3]
[403972186,1769700648270,-159.26,0.00017856,2]
[403972187,1769700648280,-1001.35373168,0.0001786,2]
[403972188,1769700648290,-380.0,0.00017862,2]
[403972189,1769700648299,-25000.0,0.00017865,3]
[403972190,1769700648309,-25000.0,0.00017874,3]
[403972191,1769700648318,-151.0,0.00017874,2]
[403972192,1769700648328,-151.0,0.00017874,2]
[403972193,1769700648338,-160.168884,0.00017874,2]
[403972194,1769700648348,-500.0,0.00017877,2]
[403972195,1769700648358,-500.0,0.00017882,2]
[403972196,1769700648367,-25000.0,0.00017882,3]
[403972197,1769700648377,-3548.0,0.00017888,2]
[403972198,1769700648386,-151.0,0.00017891,2]
[403972199,1769700648395,-151.0,0.00017891,2]
[403972200,1769700648405,-151.0,0.00017891,2]
[403972201,1769700648415,-181.381648,0.00017891,2]
[403972202,1769700648424,-21457.11133385,0.00017891,2]
[403972203,1769700648434,-25000.0,0.00017891,3]
[403972204,1769700648443,-380.0,0.00017892,2]
[403972205,1769700648453,-500.0,0.00017895,2]
[403972206,1769700648462,-162.06,0.00017895,2]
[403972207,1769700648472,-1047.11909536,0.000179,2]
[403972208,1769700648482,-7180.69529047,0.000179,3]
[403972209,1769700648492,-10000.0,0.000179,2]
[403972210,1769700648502,-2000.0,0.000179,2]
[403972211,1769700648512,-1500.64,0.000179,2]
[403972212,1769700648522,-1000.0,0.000179,2]
[403972213,1769700648531,-1000.0,0.000179,2]
[403972214,1769700648540,-2000.0,0.000179,2]
[403972215,1769700648550,-1000.0,0.000179,2]
[403972216,1769700648560,-1000.0,0.000179,2]
[403972217,1769700648569,-1000.0,0.000179,2]
[403972218,1769700648579,-1000.0,0.000179,2]
[403972219,1769700648588,-1000.0,0.000179,2]
[403972220,1769700648598,-904.623,0.000179,2]
[403972221,1769700648608,-25000.0,0.000179,3]
[403972222,1769700648618,-1081.35405701,0.000179,2]
[403972223,1769700648628,-1145.0,0.000179,6]
[403972224,1769700648638,-151.0,0.000179,2]
[403972225,1769700648648,-256.51302305,0.000179,2]
[403972226,1769700648658,-2303.68517968,0.000179,2]
[403972227,1769700648668,-24253.17423452,0.000179,2]
[403972228,1769700648678,-9840.0,0.000179,2]
[403972229,1769700648689,-380.0,0.00017909,2]
[403972230,1769700648699,-1000.0,0.00017917,2]
[403972231,1769700648715,-625.723,0.00017917,2]
[403972232,1769700648724,-380.0,0.00017941,2]
[403972233,1769700648735,-263.0,0.00017946,2]
[403972234,1769700648746,-248.41252424,0.0001795,2]
[403972235,1769700648755,-151.0,0.00017951,2]
[403972236,1769700648766,-500.0,0.00017954,2]
[403972237,1769700648776,-500.0,0.00017954,2]
[403972238,1769700648786,-197.16,0.00017954,2]
[403972239,1769700648923,-500.0,0.00017954,2]
[403972240,1769700648935,-500.0,0.00017954,2]
[403972241,1769700648945,-153.32539,0.00017956,2]
[403972242,1769700648959,-271.20295196,0.00017969,2]
[403972243,1769700648970,-500.0,0.00017973,2]
[403972244,1769700648980,-500.0,0.00017973,2]
[403972245,1769700648990,-500.0,0.00017973,2]
[403972246,1769700649000,-500.0,0.00017973,2]
[403972247,1769700649009,-500.0,0.00017973,2]
[403972248,1769700649020,-500.0,0.00017973,2]
[403972249,1769700649029,-500.0,0.00017973,2]
[403972250,1769700649039,-500.0,0.00017973,2]
[403972251,1769700649049,-502.00566275,0.00017973,2]
[403972252,1769700649060,-500.0,0.00017973,2]
[403972253,1769700649071,-500.0,0.00017973,2]
[403972254,1769700649080,-380.0,0.00017986,2]
[403972255,1769700649091,-197178.41650523,0.0001799,3]
[403972256,1769700649100,-29216.83021418,0.0001799,2]
[403972257,1769700649110,-473.52050679,0.0001799,2]
[403972258,1769700649120,-500.0,0.00017991,2]
[403972259,1769700649130,-500.0,0.00017991,2]
[403972260,1769700649140,-380.0,0.00017992,2]
[403972261,1769700649149,-154401.436214,0.00017992,2]
[403972262,1769700649159,-151.0,0.00017997,2]
[403972263,1769700649169,-150.0,0.00017999,2]
[403972264,1769700649178,-189.60832948,0.00017999,2]
[403972265,1769700649187,-300.0,0.00017999,2]
[403972266,1769700649196,-700.20467342,0.00017999,2]
[403972267,1769700649210,-280.34589968,0.00017999,2]
[403972268,1769700649219,-300.0,0.00017999,2]
[403972269,1769700649229,-666.0,0.00017999,2]
[403972270,1769700649238,-500.0,0.00017999,2]
[403972271,1769700649248,-13998.35686924,0.00017999,2]
[403972272,1769700649258,-500.0,0.00017999,2]
[403972273,1769700649267,-500.0,0.00017999,2]
[403972274,1769700649277,-500.0,0.00017999,2]
[403972275,1769700649287,-647.66859598,0.00017999,2]
[403972276,1769700649296,-500.0,0.00017999,2]
[403972277,1769700649306,-500.0,0.00017999,2]
[403972278,1769700649316,-500.0,0.00017999,2]
[403972279,1769700649326,-500.0,0.00017999,2]
[403972280,1769700649336,-500.0,0.00017999,2]
[403972281,1769700649345,-558.58231824,0.00017999,2]
[403972282,1769700649355,-12037.49230273,0.00017999,2]
[403972283,1769700649366,-666.0,0.00017999,2]
[403972284,1769700649376,-2346065.15248115,0.00018,2]
[403972285,1769700649805,-151.29,0.00014826,2]
[403972286,1769700649815,-769.57997726,0.00018,2]
[403972287,1769700649826,-2571.2497279,0.00018,2]
[403972288,1769700649849,-7940.71254527,0.00018,2]
[403972289,1769700649869,-347.87501824,0.00018,2]
[403972291,1769700651261,-500.0,0.00013817,2]
[403972292,1769700651272,-500.0,0.00014091,2]
[403972293,1769700651286,-151.0,0.00017838,2]
[403972294,1769700651296,-151.0,0.00017838,2]
[403972295,1769700651306,-21010.47595393,0.00018,2]
[403972296,1769700651318,-402.03726269,0.00018,2]
[403972297,1769700651331,-402.10122914,0.00018,2]
[403972298,1769700651755,-1795130.29049799,0.00018,2]
[403972299,1769700651767,-18483.87454893,0.00018,2]
[403972300,1769700651779,-1662.86,0.00018,2]
[403972301,1769700651929,-3178.4822632,0.00018,2]
[403972302,1769700651941,-3498.88863397,0.00018,2]
[403972303,1769700652060,-334.08998,0.00018,2]
[403972304,1769700652072,-105640.941031,0.00018,2]
[403972305,1769700652084,-648.42411051,0.00018,2]
[403972306,1769700652115,-4275.75,0.00018,2]
[403972307,1769700652128,-570.06,0.00018,2]
[403972308,1769700652139,-2591.28987849,0.00018,2]
[403972309,1769700652158,-2558.63987042,0.00018,2]
[403972310,1769700652382,-8565.87993215,0.00018,2]
[403972311,1769700652526,-31702.60000016,0.00018,2]
[403972312,1769700652540,-3854.53003838,0.00018,2]
[403972313,1769700652555,-1103.2,0.00018,2]
[403972315,1769700659792,500.0,0.00013709,2]
[403972316,1769700666690,9500.01,0.00013717,2]
[403972317,1769700666725,10000.01,0.00013717,2]
[403972318,1769700666757,10000.01,0.00013717,2]
[403972319,1769700666791,3770.6658,0.00013717,2]
[403972320,1769700681534,6229.3442,0.00013717,2]
[403972321,1769700681568,10000.01,0.00013717,2]
[403972322,1769700681601,10000.01,0.00013717,2]
[403972323,1769700681632,10000.01,0.00013717,2]
[403972324,1769700681665,10000.01,0.00013717,2]
[403972325,1769700681696,10000.01,0.00013717,2]
[403972326,1769700681737,10000.01,0.00013717,2]
[403972327,1769700681770,10000.01,0.00013717,2]
[403972328,1769700681806,10000.01,0.00013717,2]
[403972329,1769700681840,10000.01,0.00013717,2]
[403972332,1769700691883,-7012.47251586,0.00013717,2]
[403972333,1769700692112,-10000.01,0.00013717,2]
[403972334,1769700692228,-10000.01,0.00013717,2]
[403972335,1769700692399,-10000.01,0.00013717,2]
[403972336,1769700692588,-10000.01,0.00013717,2]
[403972337,1769700692733,-10000.01,0.00013717,2]
[403972338,1769700692984,-10000.01,0.00013717,2]
[403972339,1769700693134,-10000.01,0.00013717,2]
[403972340,1769700693277,-10000.01,0.00013717,2]
[403972341,1769700693467,-10000.01,0.00013717,2]
[403972342,1769700693580,-10000.01,0.00013717,2]
[403972343,1769700693704,-10000.01,0.00013717,2]
[403972344,1769700697374,-1067.11313122,0.00013617,2]
[403972345,1769700698345,-7865.78373756,0.00013717,2]
[403972346,1769700698834,-10000.01,0.00013717,2]
[403972347,1769700698856,-10000.01,0.00013717,2]
[403972348,1769700698900,-10000.01,0.00013717,2]
[403972349,1769700699043,-10000.01,0.00013717,2]
[403972350,1769700699104,-10000.01,0.00013717,2]
[403972351,1769700699151,-10000.01,0.00013717,2]
[403972352,1769700699185,-10000.01,0.00013717,2]
[403972353,1769700699234,-10000.01,0.00013717,2]
[403972354,1769700704206,-10000.01,0.00013717,2]
[403972355,1769700712551,-10000.01,0.00013717,2]
[403972356,1769700712699,-10000.01,0.00013717,2]
[403972357,1769700712852,-10000.01,0.00013717,2]
[403972358,1769700713031,-10000.01,0.00013717,2]
[403972359,1769700713209,-10000.01,0.00013717,2]
[403972360,1769700713410,-10000.01,0.00013717,2]
[403972361,1769700713539,-10000.01,0.00013717,2]